Cogmind - Beta 13 @@@ ROGUE MODE // 2024.04.09 @ 19:02:44 Player: lucasboxerhead Result: Destroyed by as-59468 with Assembled Blade Performance ------------- Evolutions (0) 0 Regions Visited (2) 400 Robots Destroyed (9) 45 Value Destroyed (298) 298 Prototype IDs (0) 0 Alien Tech Used (0) 0 Bonus (0) 0 TOTAL SCORE: 743 Bonus ------- None Cogmind --------- Core Integrity 0/250 Matter 300/300 Energy 87/100 System Corruption 0% Temperature Cool (55) Movement Core (50) Location -10/Mines Parts ------- > --- POWER (1) -------- (None) > --- PROPULSION (2) --- (None) > --- UTILITY (2) ------ (None) > --- WEAPON (2) ------- Small Laser > --- INVENTORY (5) ---- Ion Engine Light Nuclear Core Aluminum Leg Aluminum Leg Aluminum Leg Peak State ------------ > --- POWER ------------ Ion Engine > --- PROPULSION ------- Aluminum Leg Aluminum Leg > --- UTILITY ---------- Improved Heat Sink Small Storage Unit > --- WEAPON ----------- Particle Gun Particle Gun > --- INVENTORY -------- Ion Engine Light Nuclear Core Aluminum Leg Aluminum Leg Aluminum Leg Improved Heat Sink EM Pulse Gun Small Laser [Rating: 12] Favorites ----------- Power Ion Engine Engine Ion Engine Propulsion Aluminum Leg Treads Light Treads Leg Aluminum Leg Utility Small Storage Unit Device Improved Heat Sink Storage Small Storage Unit Weapon Small Laser Energy Gun Small Laser Build | -11 -10 -10 ------- Run | Yrd Mat Min Slots Evolved . | . . . Power . | . . . Propulsion . | . . . Utility . | . . . Weapon . | . . . Parts Attached 21 | 8 3 10 Power 2 | 1 . 1 Engine 2 | 1 . 1 Core . | . . . Reactor . | . . . Propulsion 10 | 4 2 4 Treads 2 | 2 . . Leg 8 | 2 2 4 Wheel . | . . . Hover . | . . . Flight . | . . . Utility 2 | 1 . 1 Device 1 | . . 1 Storage 1 | 1 . . Processor . | . . . Hackware . | . . . Protection . | . . . Artifact . | . . . Weapon 7 | 2 1 4 Energy Gun 7 | 2 1 4 Energy Cannon . | . . . Ballistic Gun . | . . . Ballistic Cannon . | . . . Launcher . | . . . Special Weapon . | . . . Impact Weapon . | . . . Slashing Weapon . | . . . Piercing Weapon . | . . . Special Melee Weapon . | . . . Unidentified Prototypes . | . . . Parts Lost 9 | . 2 7 Power 1 | . . 1 Propulsion 3 | . 1 2 Utility 2 | . . 2 Weapon 3 | . 1 2 Highest Loss Streak 7 | . 2 7 To Critical Strikes . | . . . Average Slot Usage (%) 85 | . 83 87 Engine 13 | . 14 13 Leg 27 | . 26 27 Device 2 | . . 4 Storage 14 | . 14 14 Energy Gun 27 | . 27 27 Naked Turns . | . . . Heaviest Build 17 | 13 13 17 Greatest Support 40 | 40 20 20 Greatest Overweight (x) 3 | 3 1 . Average Overweight (x) . | . . . Largest Inventory Capacity 8 | 8 8 8 Average Capacity 7 | 7 8 7 Most Carried 8 | 3 2 8 Average Carried 2 | 1 1 3 Final Capacity 8 | 8 8 5 Final Carried 5 | 1 1 5 Class Distribution -------------------- 82% | Mutant 17% | Scavenger-Mutant Dominant Class ---------------- Mutant | -10/Materials Mutant | -10/Mines Resources | -11 -10 -10 ----------- Run | Yrd Mat Min Matter Collected 393 | 220 75 98 Remotely . | . . . Salvage Created 254 | . 224 30 Parts 9 | . 9 . Haulers Intercepted . | . . . Recyclers Shooed 3 | . 3 . Parts Field Recycled . | . . . Retrieved Matter . | . . . Parts Self-Destructed . | . . . Prevented . | . . . Kills | -11 -10 -10 ------- Run | Yrd Mat Min Combat Hostiles Destroyed 11 | . 7 4 Guns 10 | . 6 4 Classes Destroyed 4 | . 2 2 Swarmer 3 | . 3 . Grunt 4 | . 4 . Demolisher 2 | . . 2 Assembled 2 | . . 2 Best Kill Streak 3 | . 3 2 Combat Bots Only 3 | . 3 2 Max Kills in Single Turn 1 | . 1 1 Gunslinging . | . . . Exploded . | . . . Melee . | . . . Uniques/NPCs Destroyed . | . . . Combat | -11 -10 -10 -------- Run | Yrd Mat Min Hostile Shots Fired 82 | . 58 24 Missed 14 | . 11 3 Damage Taken 1211 | . 462 749 Core 252 | . 153 99 Absorbed by Shields . | . . . Core Remaining (%) 100 | 100 . . Volleys Fired 49 | . 31 18 Largest 2 | . 2 2 Hottest 130 | . 90 130 Shots Fired 79 | . 53 26 Gun 79 | . 53 26 Cannon . | . . . Launcher . | . . . Special . | . . . Kinetic . | . . . Thermal 79 | . 53 26 Explosive . | . . . Electromagnetic . | . . . Robot Hit Streak 14 | . 13 14 Robot Miss Streak 4 | . 4 3 Penetration Max . | . . . Secondary Targets . | . . . Shots Hit Robots 46 | . 31 15 Core Hits 23 | . 14 9 Critical Kills . | . . . Critical Parts Destroyed . | . . . Critical Strikes 1 | . 1 . Burn 1 | . 1 . Melee Attacks . | . . . Impact . | . . . Slashing . | . . . Piercing . | . . . Sneak Attacks . | . . . Combat Hostiles . | . . . Follow-up Attacks . | . . . Damage Inflicted 566 | . 375 191 Guns 555 | . 370 185 Cannons . | . . . Explosions . | . . . Melee . | . . . Ramming 11 | . 5 6 Kinetic . | . . . Thermal 555 | . 370 185 Explosive . | . . . Electromagnetic . | . . . Impact . | . . . Slashing . | . . . Piercing . | . . . Highest Corruption . | . . . Average Corruption . | . . . Corruption Purged . | . . . Corruption Blocked . | . . . Overload Shots . | . . . Overflow Damage . | . . . Projectiles . | . . . Explosions . | . . . Melee . | . . . Knockbacks . | . . . Impact . | . . . Kinetic . | . . . Secondary . | . . . Self-Inflicted Damage . | . . . Shots . | . . . Rammed . | . . . Targets Rammed 4 | . 3 1 Kicked 4 | . 3 1 Crushed . | . . . Highest Temperature 357 | . 357 155 Average Temperature 150 | . 182 63 Received Heat Transfer 132 | . 132 . Effects 3 | . 3 . Energy Bleed 2 | . 2 . Interference 1 | . 1 . Siege Activations . | . . . Robots Corrupted . | . . . Combat Hostiles . | . . . Parts Fried . | . . . Impact Corruptions . | . . . Robots Melted 1 | . 1 . Combat Hostiles 1 | . 1 . Parts Melted 2 | . 2 . Heat Transferred 1476 | . 1041 435 Parts Sabotaged . | . . . Parts Stolen . | . . . Parts Stripped . | . . . Power Chain Reactions . | . . . Alert | -11 -10 -10 ------- Run | Yrd Mat Min Peak Influence 225 | . 225 87 Initial 87 | . . 87 Average 87 | . 126 79 Maximum Alert Level 1 | . 1 . Low Security (%) 91 | 100 74 100 Level 1 8 | . 25 . Level 2 . | . . . Level 3 . | . . . Level 4 . | . . . Level 5 . | . . . High Security . | . . . Max Security . | . . . Squads Dispatched . | . . . Investigation . | . . . Extermination . | . . . Reinforcement . | . . . Assault . | . . . Garrison . | . . . Intercept . | . . . Searches Triggered . | . . . Construction Impeded . | . . . Haulers Reinforced . | . . . Active Scanning Responses . | . . . Cargo Convoy Interrupts . | . . . Stealth | -11 -10 -10 --------- Run | Yrd Mat Min Distress Signals 2 | . 1 1 Communications Jammed . | . . . Distress Signals . | . . . Times Spotted 19 | . 14 5 Peak Tracking Total 5 | . 5 2 Tactical Retreats 2 | . 2 . Traps | -11 -10 -10 ------- Run | Yrd Mat Min Traps Triggered . | . . . Indirectly . | . . . Trap Hack Attempts . | . . . Triggered . | . . . Disarmed . | . . . Reprogrammed . | . . . Reused . | . . . Traps Extracted . | . . . Installed . | . . . Triggered . | . . . Machines | -11 -10 -10 ---------- Run | Yrd Mat Min Machines Disabled . | . . . Max in Single Turn . | . . . Machines Repaired . | . . . Machines Dismantled . | . . . Machines Sabotaged . | . . . Overloaded Fab Kills . | . . . Hacking | -11 -10 -10 --------- Run | Yrd Mat Min Machines Accessed 1 | . . 1 Terminals . | . . . Fabricators . | . . . Repair Stations . | . . . Recycling Units . | . . . Scanalyzers . | . . . Garrison Access . | . . . Total Hacks 1 | . . 1 Successful 1 | . . 1 Failed . | . . . Catastrophic . | . . . Database Lockouts . | . . . Manual . | . . . Terminals . | . . . Fabricators . | . . . Repair Stations . | . . . Recycling Units . | . . . Scanalyzers . | . . . Garrison Access . | . . . Terminal Hacks 1 | . . 1 Open Door 1 | . . 1 Fabricator Hacks . | . . . Repair Station Hacks . | . . . Recycling Unit Hacks . | . . . Scanalyzer . | . . . Garrison Access Hacks . | . . . Unauthorized Hacks . | . . . Terminals . | . . . Fabricators . | . . . Repair Stations . | . . . Recycling Units . | . . . Scanalyzers . | . . . Garrison Access . | . . . Data Cores Recovered . | . . . Used . | . . . Hacking Detections . | . . . Full Trace Events . | . . . Feedback Events . | . . . Feedback Blocked . | . . . Robot Schematics Acquired . | . . . Robots Built . | . . . Authchips . | . . . Time . | . . . Total Robot Build Rating . | . . . Part Schematics Acquired . | . . . Parts Built . | . . . Authchips . | . . . Time . | . . . Total Part Build Rating . | . . . Parts Repaired . | . . . Time . | . . . Parts Recycled . | . . . Recycled Matter . | . . . Retrieved Matter . | . . . Retrieved Components . | . . . Parts Scanalyzed . | . . . Part Schematics Acquired . | . . . Parts Damaged . | . . . Bothacking | -11 -10 -10 ------------ Run | Yrd Mat Min Used RIF Installer . | . . . Robots Hacked . | . . . Non-combat . | . . . Combat . | . . . Robot Hacks Applied . | . . . Relay Couplers Released . | . . . Fabnet Peak Effective % . | . . . Robots Rewired . | . . . Allies Hacked . | . . . Hacks Repelled . | . . . Allies | -11 -10 -10 -------- Run | Yrd Mat Min Total Allies . | . . . Largest Group . | . . . Highest-Rated Group . | . . . Highest-Rated Ally . | . . . Total Orders . | . . . Ally Attacks . | . . . Total Damage . | . . . Kills . | . . . Allies Corrupted . | . . . Allies Melted . | . . . Intel | -11 -10 -10 ------- Run | Yrd Mat Min Robot Analysis Total . | . . . Derelict Logs Recovered 1 | . . 1 Drone Launches . | . . . Drone Recoveries . | . . . Exploration | -11 -10 -10 ------------- Run | Yrd Mat Min Turns Passed 795 | 81 274 440 Spaces Moved 498 | 53 141 304 Core 9 | 9 . . Treads 8 | 8 . . Legs 481 | 36 141 304 Wheels . | . . . Hover . | . . . Flight . | . . . Fastest Speed 50 | 50 120 120 Average Speed 121 | 122 122 120 Slowest Speed 200 | 200 190 120 Overloaded Moves . | . . . Propulsion Burnouts . | . . . Robots Hopped . | . . . Cave-ins Triggered . | . . . Exploration Rate (%) 31 | 4 33 57 Regions Visited 2 Branch Regions 1 Pre-discovered Areas 1 | . . 1 Known Exits Taken . | . . . Unknown Exits Taken 2 | 1 1 . Scrap Searched 1 | . . 1 Spaces Dug . | . . . Terrain Destroyed . | . . . Melee . | . . . Projectile . | . . . AOE . | . . . Terrain Rammed . | . . . Walls Destroyed . | . . . Machines Disabled . | . . . Actions | -11 -10 -10 --------- Run | Yrd Mat Min Total 609 | 67 187 355 Wait 24 | 1 10 13 Move 496 | 52 140 304 Hop . | . . . Pick Up 7 | 2 . 5 Fast Attach 9 | 7 1 1 Attach 3 | 1 1 1 Detach 2 | 2 . . Swap 9 | . 1 8 Drop 6 | 2 . 4 Fire 49 | . 31 18 Melee . | . . . Ram . | . . . Kick 4 | . 3 1 Crush . | . . . Escape Stasis . | . . . Rewire . | . . . Trap . | . . . Miscellaneous . | . . . Route ------- -11/Scrapyard -10/Materials -10/Mines History --------- Turn | Location | Event 2 | -11/Scrapyard | Met Revision 17 26 | -11/Scrapyard | Discovered new exit (range 16) 82 | -11/Scrapyard | Entered Materials 282 | -10/Materials | Core integrity fell below 50% 320 | -10/Materials | Discovered new exit (range 7) 337 | -10/Materials | Build established: Mutant 356 | -10/Materials | Entered Mines 357 | -10/Mines | Assembled infested the area 362 | -10/Mines | Assisted by a Guerilla fighting off Assembled 365 | -10/Mines | Met a Derelict who couldn't figure out how to use a Trap Extractor 780 | -10/Mines | Core integrity fell below 20% 796 | -10/Mines | Destroyed by as-59468 with Assembled Blade Last Messages --------------- 00777_ R-06 Scavenger destroyed. 00778_ U-05 Engineer builds a Wall. 00780_ K-01 Serf collects debris. 00780_ D-53 Grenadier destroyed. 00782_ The unstable cave ceiling collapses. 00782_ Aluminum Leg destroyed. 00783_ The unstable cave ceiling collapses. 00783_ K-01 Serf collects debris. 00784_ The unstable cave ceiling collapses. 00784_ Particle Gun destroyed. 00785_ The unstable cave ceiling collapses. 00785_ Sml. Storage Unit crushed. 00786_ K-01 Serf collects debris. 00787_ T-07 Excavator destroyed. 00788_ The unstable cave ceiling collapses. 00789_ Aluminum Leg destroyed. 00790_ The unstable cave ceiling collapses. 00792_ D-53 Grenadier destroyed. 00793_ The unstable cave ceiling collapses. 00794_ Sml. Storage Unit destroyed. Map ----- +----------------------------------------------------+ | | | | | | | | | | | | | | | | | | | | | ?????????????????????????????????????????????????? | | ?????????????????????????????????????????????????? | | ?????????????????????????????????????????????????? | | ?????????????????????????????????##??????????????? | | ?????????????????????????####???# ##????????????? | | ???????????????????###?## ##?# #????????????? | | ??????????????????## ## ## #???????????? | | ??????????????????# ???????????? | | ??????????????##### ?????????????? | | ###??????????## "#? ??????????????? | | ############ #?? #???????????????? | | #???# #????????????????? | | # #??## #?????????????????? | | # ### [ ##?# # =#?????????????????? | | # #?## %%% ### #[ #?????????????????? | | # #??### ## a@ #?????????????????? | | # #????## % ## # #????????????????? | | # #???### # = #???????????????? | | # #???# %! *%%* #??????????????? | | # #??# % % ##! %=!!| %????????????? | | # #?# % ########## # #### ??????????? | | # # ##??###### # # #? %####??????????? | | # % #??## #???? #?????????????? | | ### ##??# ##????? #?????????????? | | #### ## #???# ###???????#?????????????? | | # # #???# #??????????????????????? | | # ### ###??# ######??????????????????????? | | ???? # #?? #????????????????????????????? | | ???#### ## " #?????????????????????????????? | | ??????## % ##??????????????????????????????? | | ?# ##### ### #????????????????????????????????? | | ?# ####?????????????????????????????????? | | ?####### ## #????????????????????????????????????? | | ?????????## ##???????????????????????????????????? | | ????????## ###?????????????????????????????????? | | ???????## ##????????????????????????????????? | | ?????### #????????????????????????????????? | | ###?## #????????????????????????????????? | | # ## ##????????????????????????????????? | | [! # ###?????????????????????????????????? | +----------------------------------------------------+ Best States ------------- Heat Dissipation 39 Energy Generation 10 Energy Capacity 250 Matter Stores 300 Matter Capacity 300 Sight Range 16 Terrain Scan Density 10 Evasion (%) 55 Recoil Reduction 2 Item Schematics ----------------- None Robot Schematics ------------------ None Fabricated ------------ Nothing Alien Tech Used ----------------- None Achievements -------------- None Challenges ------------ None Game ------ Seed GhostFluxDisintegrator Manual? 0 Play Time 00:10:16 Cumulative 10.1 hours Start 2024.04.09 @ 18:55:53 End 2024.04.09 @ 19:02:44 Sessions 1 Manual Loads 0 Difficulty Rogue Special Mode None Game No. 29 Rogue 26 Adventurer 3 Explorer 0 Win Type - Total 0 Types 0/0/0/0/0/0/0/0/0 Lore% 8 Gallery% 16 Achievement% 14 Wizard Run 0 Options --------- Layout 1 ASCII 0 Keyboard 1 Movement Numpad Keybinds 0 Fullscreen 2 Font 24/Smallcaps Map View 50x35 Zoom Use 0% Tactical HUD 1 Map Filters NONE Filters NONE Steam 1 RUN: 88d887b1-4485-4f75-a1f3-22782b5e2c2f